fUSD/lending_fUSD_20241018
["ID","MTS","AMOUNT","RATE_DAILY","PERIOD"]
[340449803,1729269047881,-158.46,0.0002,2]
[340449804,1729269047898,-158.46,0.0002,2]
[340449805,1729269047918,-158.46,0.0002,2]
[340449806,1729269047938,-158.46,0.0002,2]
[340449807,1729269047954,-158.46,0.0002,2]
[340449808,1729269047971,-158.46,0.0002,2]
[340449809,1729269047987,-158.46,0.0002,2]
[340449810,1729269048003,-158.46,0.0002,2]
[340449811,1729269048020,-158.46,0.0002,2]
[340449812,1729269048042,-158.46,0.0002,2]
[340449813,1729269048062,-158.46,0.0002,2]
[340449814,1729269048083,-158.46,0.0002,2]
[340449815,1729269048103,-158.46,0.0002,2]
[340449816,1729269048121,-158.46,0.0002,2]
[340449817,1729269048139,-158.46,0.0002,2]
[340449818,1729269048158,-158.46,0.0002,2]
[340449819,1729269048175,-158.46,0.0002,2]
[340449820,1729269048197,-158.46,0.0002,2]
[340449821,1729269048214,-158.46,0.0002,2]
[340449822,1729269048230,-2000.0,0.0002001,2]
[340449823,1729269048246,-158.46,0.0002001,2]
[340449824,1729269048263,-158.46,0.0002001,2]
[340449825,1729269048278,-500.0,0.0002002,2]
[340449826,1729269048294,-500.0,0.0002002,2]
[340449827,1729269048310,-500.0,0.0002002,2]
[340449828,1729269048325,-500.0,0.0002002,2]
[340449829,1729269048340,-500.0,0.0002002,2]
[340449830,1729269048355,-500.0,0.0002002,2]
[340449831,1729269048370,-500.0,0.0002002,2]
[340449832,1729269048384,-500.0,0.0002002,2]
[340449833,1729269048399,-500.0,0.0002002,2]
[340449834,1729269048413,-500.0,0.0002002,2]
[340449835,1729269048430,-500.0,0.0002002,2]
[340449836,1729269048446,-500.0,0.0002002,2]
[340449837,1729269048461,-500.0,0.0002002,2]
[340449838,1729269048477,-500.0,0.0002002,2]
[340449839,1729269048492,-500.0,0.0002002,2]
[340449840,1729269048508,-500.0,0.0002002,2]
[340449841,1729269048523,-500.0,0.0002002,2]
[340449842,1729269048538,-500.0,0.0002002,2]
[340449843,1729269048553,-500.0,0.0002002,2]
[340449844,1729269048567,-500.0,0.0002002,2]
[340449845,1729269048583,-500.0,0.0002002,2]
[340449846,1729269048600,-500.0,0.0002002,2]
[340449847,1729269048612,-500.0,0.0002002,2]
[340449848,1729269048622,-3785.439032,0.0002002,2]
[340449849,1729269048785,-500.0,0.0002002,2]
[340449850,1729269048813,-500.0,0.0002002,2]
[340449851,1729269048825,-500.0,0.0002002,2]
[340449852,1729269048836,-500.0,0.0002002,2]
[340449853,1729269048845,-500.0,0.0002002,2]
[340449854,1729269048855,-500.0,0.0002002,2]
[340449855,1729269048864,-500.0,0.0002002,2]
[340449856,1729269048874,-500.0,0.0002002,2]
[340449857,1729269048883,-500.0,0.0002002,2]
[340449858,1729269048893,-500.0,0.0002002,2]
[340449859,1729269048903,-500.0,0.0002002,2]
[340449860,1729269048913,-500.0,0.0002002,2]
[340449861,1729269048922,-500.0,0.0002002,2]
[340449862,1729269048936,-500.0,0.0002002,2]
[340449863,1729269048945,-500.0,0.0002002,2]
[340449864,1729269048955,-500.0,0.0002002,2]
[340449865,1729269048965,-500.0,0.0002002,2]
[340449866,1729269048975,-500.0,0.0002002,2]
[340449867,1729269048984,-500.0,0.0002002,2]
[340449868,1729269048995,-500.0,0.0002002,2]
[340449869,1729269049005,-500.0,0.0002002,2]
[340449870,1729269049014,-500.0,0.0002002,2]
[340449871,1729269049024,-500.0,0.0002002,2]
[340449872,1729269049034,-500.0,0.0002002,2]
[340449873,1729269049043,-500.0,0.0002002,2]
[340449874,1729269049053,-500.0,0.0002002,2]
[340449875,1729269049062,-500.0,0.0002002,2]
[340449876,1729269049071,-500.0,0.0002002,2]
[340449877,1729269049081,-500.0,0.0002002,2]
[340449878,1729269049090,-500.0,0.0002002,2]
[340449879,1729269049099,-500.0,0.0002002,2]
[340449880,1729269049109,-500.0,0.0002002,2]
[340449881,1729269049119,-500.0,0.0002002,2]
[340449882,1729269049129,-500.0,0.0002002,2]
[340449883,1729269049138,-500.0,0.0002002,2]
[340449884,1729269049148,-500.0,0.0002002,2]
[340449885,1729269049158,-500.0,0.0002002,2]
[340449886,1729269049168,-500.0,0.0002002,2]
[340449887,1729269049178,-500.0,0.0002002,2]
[340449888,1729269049187,-500.0,0.0002002,2]
[340449889,1729269049197,-500.0,0.0002002,2]
[340449890,1729269049207,-500.0,0.0002002,2]
[340449891,1729269049217,-500.0,0.0002002,2]
[340449892,1729269049227,-500.0,0.0002002,2]
[340449893,1729269049236,-500.0,0.0002002,2]
[340449894,1729269049245,-500.0,0.0002002,2]
[340449895,1729269049254,-500.0,0.0002002,2]
[340449896,1729269049264,-500.0,0.0002002,2]
[340449897,1729269049274,-500.0,0.0002002,2]
[340449898,1729269049283,-500.0,0.0002002,2]
[340449899,1729269049292,-500.0,0.0002002,2]
[340449900,1729269049302,-500.0,0.0002002,2]
[340449901,1729269049312,-500.0,0.0002002,2]
[340449902,1729269049322,-500.0,0.0002002,2]
[340449903,1729269049331,-500.0,0.0002002,2]
[340449904,1729269049341,-500.0,0.0002002,2]
[340449905,1729269049351,-500.0,0.0002002,2]
[340449906,1729269049361,-500.0,0.0002002,2]
[340449907,1729269049372,-500.0,0.0002002,2]
[340449908,1729269049381,-500.0,0.0002002,2]
[340449909,1729269049391,-500.0,0.0002002,2]
[340449910,1729269049401,-500.0,0.0002002,2]
[340449911,1729269049410,-500.0,0.0002002,2]
[340449912,1729269049418,-500.0,0.0002002,2]
[340449913,1729269049427,-500.0,0.0002002,2]
[340449914,1729269049437,-500.0,0.0002002,2]
[340449915,1729269049446,-500.0,0.0002002,2]
[340449916,1729269049456,-500.0,0.0002002,2]
[340449917,1729269049465,-500.0,0.0002002,2]
[340449918,1729269049476,-500.0,0.0002002,2]
[340449919,1729269049486,-500.0,0.0002002,2]
[340449920,1729269049495,-500.0,0.0002002,2]
[340449921,1729269049506,-500.0,0.0002002,2]
[340449922,1729269049516,-500.0,0.0002002,2]
[340449923,1729269049526,-500.0,0.0002002,2]
[340449924,1729269049536,-500.0,0.0002002,2]
[340449925,1729269049545,-500.0,0.0002002,2]
[340449926,1729269049555,-500.0,0.0002002,2]
[340449927,1729269049566,-500.0,0.0002002,2]
[340449928,1729269049576,-500.0,0.0002002,2]
[340449929,1729269049586,-500.0,0.0002002,2]
[340449930,1729269049597,-500.0,0.0002002,2]
[340449931,1729269049607,-500.0,0.0002002,2]
[340449932,1729269049617,-500.0,0.0002002,2]
[340449933,1729269049627,-500.0,0.0002002,2]
[340449934,1729269049636,-500.0,0.0002002,2]
[340449935,1729269049645,-500.0,0.0002002,2]
[340449936,1729269049655,-500.0,0.0002002,2]
[340449937,1729269049664,-500.0,0.0002002,2]
[340449938,1729269049674,-500.0,0.0002002,2]
[340449939,1729269049685,-500.0,0.0002002,2]
[340449940,1729269049695,-500.0,0.0002002,2]
[340449941,1729269049704,-500.0,0.0002002,2]
[340449942,1729269049714,-500.0,0.0002002,2]
[340449943,1729269049724,-500.0,0.0002002,2]
[340449944,1729269049734,-500.0,0.0002002,2]
[340449945,1729269049743,-500.0,0.0002002,2]
[340449946,1729269049753,-500.0,0.0002002,2]
[340449947,1729269049763,-500.0,0.0002002,2]
[340449948,1729269049772,-500.0,0.0002002,2]
[340449949,1729269049781,-500.0,0.0002002,2]
[340449950,1729269049791,-500.0,0.0002002,2]
[340449951,1729269049800,-500.0,0.0002002,2]
[340449952,1729269049810,-500.0,0.0002002,2]
[340449953,1729269049823,-500.0,0.0002002,2]
[340449954,1729269049834,-500.0,0.0002002,2]
[340449955,1729269049843,-500.0,0.0002002,2]
[340449956,1729269049855,-500.0,0.0002002,2]
[340449957,1729269049864,-500.0,0.0002002,2]
[340449958,1729269049873,-500.0,0.0002002,2]
[340449959,1729269049883,-500.0,0.0002002,2]
[340449960,1729269049895,-500.0,0.0002002,2]
[340449961,1729269049905,-500.0,0.0002002,2]
[340449962,1729269049914,-500.0,0.0002002,2]
[340449963,1729269049924,-500.0,0.0002002,2]
[340449964,1729269049936,-500.0,0.0002002,2]
[340449965,1729269049945,-500.0,0.0002002,2]
[340449966,1729269049955,-500.0,0.0002002,2]
[340449967,1729269049964,-500.0,0.0002002,2]
[340449968,1729269049974,-500.0,0.0002002,2]
[340449969,1729269049983,-500.0,0.0002002,2]
[340449970,1729269049993,-500.0,0.0002002,2]
[340449971,1729269050003,-500.0,0.0002002,2]
[340449972,1729269050012,-500.0,0.0002002,2]
[340449973,1729269050022,-500.0,0.0002002,2]
[340449974,1729269050031,-500.0,0.0002002,2]
[340449975,1729269050041,-500.0,0.0002002,2]
[340449976,1729269050050,-500.0,0.0002002,2]
[340449977,1729269050060,-500.0,0.0002002,2]
[340449978,1729269050070,-500.0,0.0002002,2]
[340449979,1729269050079,-500.0,0.0002002,2]
[340449980,1729269050088,-500.0,0.0002002,2]
[340449981,1729269050097,-500.0,0.0002002,2]
[340449982,1729269050108,-500.0,0.0002002,2]
[340449983,1729269050118,-500.0,0.0002002,2]
[340449984,1729269050128,-500.0,0.0002002,2]
[340449985,1729269050138,-500.0,0.0002002,2]
[340449986,1729269050147,-500.0,0.0002002,2]
[340449987,1729269050157,-500.0,0.0002002,2]
[340449988,1729269050166,-500.0,0.0002002,2]
[340449989,1729269050177,-500.0,0.0002002,2]
[340449990,1729269050186,-500.0,0.0002002,2]
[340449991,1729269050195,-500.0,0.0002002,2]
[340449992,1729269050205,-500.0,0.0002002,2]
[340449993,1729269050215,-500.0,0.0002002,2]
[340449994,1729269050225,-500.0,0.0002002,2]
[340449995,1729269050234,-500.0,0.0002002,2]
[340449996,1729269050244,-500.0,0.0002002,2]
[340449997,1729269050254,-500.0,0.0002002,2]
[340449998,1729269050263,-500.0,0.0002002,2]
[340449999,1729269050272,-500.0,0.0002002,2]
[340450000,1729269050282,-500.0,0.0002002,2]
[340450001,1729269050291,-500.0,0.0002002,2]
[340450002,1729269050300,-500.0,0.0002002,2]
[340450003,1729269050309,-500.0,0.0002002,2]
[340450004,1729269050318,-500.0,0.0002002,2]
[340450005,1729269050327,-500.0,0.0002002,2]
[340450006,1729269050336,-500.0,0.0002002,2]
[340450007,1729269050345,-500.0,0.0002002,2]
[340450008,1729269050354,-500.0,0.0002002,2]
[340450009,1729269050364,-500.0,0.0002002,2]
[340450010,1729269050373,-500.0,0.0002002,2]
[340450011,1729269050382,-500.0,0.0002002,2]
[340450012,1729269050391,-500.0,0.0002002,2]
[340450013,1729269050400,-500.0,0.0002002,2]
[340450014,1729269050409,-500.0,0.0002002,2]
[340450015,1729269050418,-150.0,0.00020082,2]
[340450016,1729269050427,-378.45,0.00020082,2]
[340450017,1729269050437,-535.41,0.00020082,2]
[340450018,1729269050446,-305.71,0.00020082,2]
[340450019,1729269050455,-150.0,0.00020082,2]
[340450020,1729269050464,-407.89,0.00020181,2]
[340450021,1729269050474,-415.65,0.000202,2]
[340450022,1729269050485,-150.0,0.00020219,2]
[340450023,1729269050495,-1485.84014711,0.00020255,2]
[340450024,1729269050504,-200.0,0.00020267,2]
[340450025,1729269050514,-176.89,0.00020274,2]
[340450026,1729269050524,-150.0,0.00020332,2]
[340450027,1729269050533,-150.0,0.00020764,2]
[340450028,1729269050543,-359.38,0.00020904,2]
[340450029,1729269050552,-1133.58958044,0.00021,2]
[340450030,1729269050561,-187.0462899,0.00021,2]
[340450031,1729269050571,-421.38122264,0.00021175,2]
[340450032,1729269050581,-150.0,0.00021197,2]
[340450033,1729269050590,-4459.07659742,0.0002152,2]
[340450034,1729269050600,-421.38122264,0.00021593,2]
[340450035,1729269050610,-150.0,0.00021629,2]
[340450036,1729269050620,-421.38122264,0.00021722,2]
[340450037,1729269050631,-429.8,0.00021726,2]
[340450038,1729269050641,-1485.84014711,0.00021803,2]
[340450039,1729269050652,-740.06,0.00021918,2]
[340450040,1729269050661,-495.86,0.00021918,2]
[340450041,1729269050671,-632.651,0.00021924,2]
[340450042,1729269050776,-171.11827055,0.00021924,2]
[340450043,1729269050791,-421.38122264,0.00021926,2]
[340450044,1729269050801,-150.0,0.00022062,2]
[340450045,1729269050812,-522.61,0.00022137,30]
[340450046,1729269050823,-421.38122264,0.00022274,2]
[340450047,1729269050832,-200.0,0.00022293,2]
[340450048,1729269050841,-407.89,0.00022445,2]
[340450049,1729269050850,-150.0,0.00022494,2]
[340450050,1729269050859,-421.38122264,0.00022721,2]
[340450051,1729269050868,-421.38122264,0.00022765,2]
[340450052,1729269050877,-150.0,0.00022927,2]
[340450053,1729269050886,-300.92,0.00023,2]
[340450054,1729269050895,-999.62,0.00023,2]
[340450055,1729269050905,-421.38122264,0.00023207,2]
[340450056,1729269050914,-200.0,0.000233,2]
[340450057,1729269050923,-331.0,0.000233,2]
[340450058,1729269050933,-1060.0,0.000233,2]
[340450059,1729269050942,-415.65,0.000233,14]
[340450060,1729269050951,-1485.84014711,0.00023352,2]
[340450061,1729269050961,-150.0,0.0002336,2]
[340450062,1729269050970,-429.8,0.00023361,2]
[340450063,1729269050978,-429.8,0.00023361,2]
[340450064,1729269050988,-429.8,0.00023361,2]
[340450065,1729269050997,-429.8,0.00023361,2]
[340450066,1729269051006,-421.38122264,0.00023437,2]
[340450067,1729269051016,-175.15,0.00023562,2]
[340450068,1729269051025,-676.12,0.000237,14]
[340450069,1729269051034,-150.0,0.00023792,2]
[340450070,1729269051044,-421.38122264,0.00023821,2]
[340450071,1729269051053,-158.46,0.00024045,2]
[340450072,1729269051062,-756.17,0.00024055,2]
[340450073,1729269051071,-756.17,0.00024055,2]
[340450074,1729269051080,-756.17,0.00024055,2]
[340450075,1729269051090,-756.17,0.00024055,2]
[340450076,1729269051099,-756.17,0.00024055,2]
[340450077,1729269051108,-699.49868039,0.0002407,2]
[340450078,1729269051118,-421.38122264,0.00024102,2]
[340450079,1729269051128,-176.89,0.0002411,2]
[340450080,1729269051138,-150.0,0.00024225,2]
[340450081,1729269051147,-275.92,0.00024225,2]
[340450082,1729269051157,-200.0,0.0002432,2]
[340450083,1729269051166,-151.0,0.0002435,2]
[340450084,1729269051175,-421.38122264,0.00024361,2]
[340450085,1729269051184,-421.38122264,0.00024442,2]
[340450086,1729269051193,-999.62,0.00024525,2]
[340450087,1729269051202,-150.0,0.00024657,2]
[340450088,1729269051212,-500.0,0.00024658,7]
[340450089,1729269051222,-1000.0,0.00024658,2]
[340450090,1729269051231,-407.89,0.00024709,2]
[340450091,1729269051240,-522.61,0.00024721,30]
[340450092,1729269051249,-150.0,0.00024726,2]
[340450093,1729269051258,-150.0,0.00024737,2]
[340450094,1729269051267,-300.92,0.0002479,2]
[340450095,1729269051276,-150.0,0.0002479,2]
[340450096,1729269051285,-482.07892231,0.00024809,2]
[340450097,1729269051294,-155.45442395,0.00024811,2]
[340450098,1729269051304,-150.0,0.00024826,2]
[340450099,1729269051313,-150.0,0.00024838,2]
[340450100,1729269051322,-150.0,0.00024842,2]
[340450101,1729269051332,-150.0,0.00024843,2]
[340450102,1729269051342,-421.38122277,0.00024861,2]
[340450103,1729269051352,-1000.0,0.00024875,2]
[340450104,1729269051361,-1000.0,0.00024875,2]
[340450105,1729269051370,-1141.4459,0.00024875,2]
[340450106,1729269051379,-150.0,0.00024876,2]
[340450107,1729269051388,-150.0,0.00024897,2]
[340450108,1729269051397,-150.0,0.00024897,2]
[340450109,1729269051406,-360.3939,0.00024899,2]
[340450110,1729269051415,-157.26653594,0.000249,2]
[340450111,1729269051424,-358.00450659,0.000249,2]
[340450112,1729269051436,-870.9705,0.000249,2]
[340450113,1729269051446,-300.0,0.000249,2]
[340450114,1729269051454,-552.96290697,0.000249,2]
[340450115,1729269051464,-1485.84014711,0.000249,2]
[340450116,1729269051473,-179.82,0.000249,31]
[340450117,1729269051482,-179.82,0.000249,31]
[340450118,1729269051492,-179.82,0.000249,31]
[340450119,1729269051501,-179.82,0.000249,31]
[340450120,1729269051511,-179.82,0.000249,31]
[340450121,1729269051521,-179.82,0.000249,31]
[340450122,1729269051531,-179.82,0.000249,31]
[340450123,1729269051540,-179.82,0.000249,31]
[340450124,1729269051550,-179.82,0.000249,31]
[340450125,1729269051559,-179.82,0.000249,31]
[340450126,1729269051568,-179.82,0.000249,31]
[340450127,1729269051578,-179.82,0.000249,31]
[340450128,1729269051587,-179.82,0.000249,31]
[340450129,1729269051596,-179.82,0.000249,31]
[340450130,1729269051606,-179.82,0.000249,31]
[340450131,1729269051615,-179.82,0.000249,31]
[340450132,1729269051625,-150.0,0.00024904,2]
[340450133,1729269051634,-150.0,0.00024907,2]
[340450134,1729269051643,-150.0,0.00024911,2]
[340450135,1729269051652,-150.0,0.00024914,2]
[340450136,1729269051662,-150.0,0.00024918,2]
[340450137,1729269051671,-158.46,0.0002492,2]
[340450138,1729269051682,-158.46,0.0002492,2]
[340450139,1729269051691,-158.46,0.00024921,2]
[340450140,1729269051701,-158.46,0.00024921,2]
[340450141,1729269051710,-105100.0211715,0.0002493,4]
[340450142,1729269051720,-503.4193058,0.00024931,2]
[340450143,1729269051729,-1286.68,0.00024931,2]
[340450144,1729269051739,-500.0,0.00024931,2]
[340450145,1729269051748,-500.0,0.00024931,2]
[340450146,1729269051757,-356.94180705,0.00024931,2]
[340450147,1729269051767,-1046.57,0.00024931,2]
[340450148,1729269051775,-1046.57,0.00024931,2]
[340450149,1729269051785,-500.0,0.00024931,2]
[340450150,1729269051794,-1046.57,0.00024931,2]
[340450151,1729269051803,-1046.57,0.00024931,2]
[340450152,1729269051812,-1046.57,0.00024931,2]
[340450153,1729269051824,-185.19529185,0.00024931,2]
[340450154,1729269051833,-1046.57,0.00024931,2]
[340450155,1729269051843,-709.94,0.00024931,2]
[340450156,1729269051852,-1046.57,0.00024931,2]
[340450157,1729269051862,-1046.57,0.00024931,2]
[340450158,1729269051871,-1046.57,0.00024931,2]
[340450159,1729269051880,-1046.57,0.00024931,2]
[340450160,1729269051889,-1046.57,0.00024931,2]
[340450161,1729269051900,-1046.57,0.00024931,2]
[340450162,1729269051909,-1046.57,0.00024931,2]
[340450163,1729269051919,-2609.4,0.00024931,2]
[340450164,1729269051929,-1046.57,0.00024931,2]
[340450165,1729269051938,-23.11188302,0.00024931,2]
[340450166,1729269052359,-341.615,0.00024931,2]
[340450167,1729269052378,-458.52,0.0002002,2]
[340450168,1729269052394,-41.48,0.0002002,2]
[340450169,1729269052403,-681.84311698,0.00024931,2]
[340450170,1729269052412,-443.18473602,0.00024931,2]
[340450171,1729269052423,-603.38526398,0.00024931,2]
[340450172,1729269052435,-1046.57,0.00024931,2]
[340450173,1729269052444,-190.91924159,0.00024931,2]
[340450174,1729269052455,-262.32200505,0.00024931,2]
[340450175,1729269053538,444.23,0.00010014,2]
[340450731,1729269092039,204.54,0.00010014,2]
[340453696,1729269191272,500.0,0.00025852,120]
[340453697,1729269196195,500.0,0.00024252,120]
[340453698,1729269196556,540.914148,0.00025852,120]
[340453699,1729269199842,500.0,0.00025506,120]
[340453700,1729269200310,500.0,0.00026761,120]
[340453701,1729269207862,200.0,0.00025485,120]
[340453702,1729269208236,200.0,0.00026719,120]
[340453704,1729269812991,204.61,0.0002564,120]
[340453709,1729270025137,-1293.42245618,0.000108,2]
[340453710,1729270046129,-294.07689047,0.000108,2]
[340453711,1729270048154,-550.50075335,0.000108,2]
[340453712,1729270048175,-590.8343937,0.00010899,2]
[340453723,1729270232357,-689.30241408,0.000107,2]
[340453724,1729270232369,-1056.27108592,0.000107,2]
[340453725,1729270232379,-388.35180297,0.000108,2]
[340453726,1729270232388,-3760.6173063,0.00010899,2]
[340453727,1729270232398,-925.3018,0.000109,2]
[340453728,1729270232407,-948.3661,0.000109,2]
[340453729,1729270232417,-150.0,0.00010932,2]
[340453730,1729270232427,-163.83,0.00010959,2]
[340453731,1729270232436,-207.62,0.00010959,2]
[340453732,1729270232446,-150.0,0.000119,2]
[340453733,1729270232455,-300.0,0.00013406,2]
[340453734,1729270232464,-299.99,0.00013407,2]
[340453735,1729270232474,-346.17,0.00013407,2]
[340453736,1729270232483,-6862.11,0.00013407,2]
[340453737,1729270232493,-321.89,0.00013407,2]
[340453738,1729270232503,-150.0,0.00013407,2]
[340453739,1729270232512,-387.46,0.00013698,2]
[340453740,1729270232522,-499.99,0.00013698,2]
[340453741,1729270232531,-208.06,0.00013699,2]
[340453742,1729270232541,-999.99,0.00013699,2]
[340453743,1729270232550,-278.00612634,0.00013699,2]
[340453744,1729270232579,-2253.18387366,0.00013699,2]
[340453745,1729270232588,-200.0,0.00013699,2]
[340453746,1729270232598,-382.4,0.00014018,2]
[340453747,1729270232607,-420.0,0.00014696,2]
[340453748,1729270232616,-150.0,0.00014899,2]
[340453749,1729270232625,-555.0,0.00014899,2]
[340453750,1729270232635,-4178.676,0.00014899,2]
[340453752,1729270232645,-2404.06,0.00016101,2]
[340453754,1729270232654,-587.0,0.0001611,2]
[340453756,1729270232663,-2000.0,0.00016148,2]
[340453758,1729270232673,-150.76,0.00016191,2]
[340453760,1729270232683,-382.4,0.00016282,2]
[340453761,1729270232693,-190.48,0.00016438,2]
[340453763,1729270232702,-176.89,0.00016438,2]
[340453766,1729270232712,-200.0,0.00016485,2]
[340453768,1729270232721,-150.0,0.00016535,2]
[340453770,1729270232730,-23900.0,0.00016625,2]
[340453771,1729270232739,-158.98,0.00016657,2]
[340453773,1729270232749,-1888.89,0.00016657,2]
[340453775,1729270232760,-250.0,0.0001669,2]
[340453777,1729270232769,-154.79,0.00016712,2]
[340453779,1729270232779,-586.85,0.00016726,2]
[340453781,1729270232788,-1379.39,0.00016726,2]
[340453783,1729270232797,-1500.0,0.00016962,2]
[340453785,1729270232806,-204.61,0.00017094,2]
[340453786,1729270232815,-3141.855,0.00017473,2]
[340453787,1729270232824,-250.0,0.0001749,2]
[340453788,1729270232832,-150.64,0.00017497,2]
[340453789,1729270232842,-207.62,0.00017592,2]
[340453790,1729270232851,-823.0,0.0001766,2]
[340453791,1729270232860,-250.0,0.00018014,2]
[340453792,1729270232870,-180.0,0.00018253,2]
[340453793,1729270232880,-382.4,0.00018546,2]
[340453794,1729270232889,-283.97,0.000186,7]
[340453795,1729270232899,-150.64,0.00018867,2]
[340453796,1729270232908,-1152.0,0.00019359,2]
[340453797,1729270232917,-5915.0,0.000196,2]
[340453798,1729270232927,-1390.0,0.000196,2]
[340453799,1729270232936,-877.5539359,0.0001981,2]
[340453800,1729270232945,-19566.8488338,0.000199,3]
[340453801,1729270232955,-386.9,0.000199,2]
[340453802,1729270232964,-386.9,0.000199,2]
[340453803,1729270232973,-386.9,0.000199,2]
[340453804,1729270232983,-500.0,0.00019909,2]
[340453805,1729270232992,-500.0,0.00019909,2]
[340453806,1729270233002,-500.0,0.00019909,2]
[340453807,1729270233011,-500.0,0.00019909,2]
[340453808,1729270233021,-317.34661939,0.00019909,2]
[340453809,1729270233031,-262988.3489342,0.0001991,2]
[340453810,1729270233040,-500.0,0.0001991,2]
[340453811,1729270233050,-500.0,0.0001991,2]
[340453812,1729270233060,-500.0,0.0001991,2]
[340453813,1729270233069,-500.0,0.0001991,2]
[340453814,1729270233079,-500.0,0.0001991,2]
[340453815,1729270233089,-500.0,0.0001991,2]
[340453816,1729270233097,-500.0,0.0001991,2]
[340453817,1729270233107,-500.0,0.0001991,2]
[340453818,1729270233116,-500.0,0.0001991,2]
[340453819,1729270233126,-500.0,0.0001991,2]
[340453820,1729270233136,-500.0,0.0001991,2]
[340453821,1729270233146,-500.0,0.0001991,2]
[340453822,1729270233155,-500.0,0.0001991,2]
[340453823,1729270233165,-500.0,0.0001991,2]
[340453824,1729270233175,-500.0,0.0001991,2]
[340453825,1729270233189,-500.0,0.0001991,2]
[340453826,1729270233199,-500.0,0.0001991,2]
[340453827,1729270233208,-500.0,0.0001991,2]
[340453828,1729270233218,-500.0,0.0001991,2]
[340453829,1729270233228,-500.0,0.0001991,2]
[340453830,1729270233238,-500.0,0.0001991,2]
[340453831,1729270233248,-500.0,0.0001991,2]
[340453832,1729270233261,-500.0,0.0001991,2]
[340453833,1729270233270,-500.0,0.0001991,2]
[340453834,1729270233280,-500.0,0.0001991,2]
[340453835,1729270233395,-500.0,0.0001991,2]
[340453836,1729270233415,-500.0,0.0001991,2]
[340453837,1729270233425,-500.0,0.0001991,2]
[340453838,1729270233435,-500.0,0.0001991,2]
[340453839,1729270233445,-500.0,0.0001991,2]
[340453840,1729270233454,-500.0,0.0001991,2]
[340453841,1729270233463,-500.0,0.0001991,2]
[340453842,1729270233472,-500.0,0.0001991,2]
[340453843,1729270233482,-500.0,0.0001991,2]
[340453844,1729270233492,-500.0,0.0001991,2]
[340453845,1729270233501,-500.0,0.0001991,2]
[340453846,1729270233513,-500.0,0.0001991,2]
[340453847,1729270233523,-500.0,0.0001991,2]
[340453848,1729270233533,-500.0,0.0001991,2]
[340453849,1729270233542,-500.0,0.0001991,2]
[340453850,1729270233552,-500.0,0.0001991,2]
[340453851,1729270233561,-500.0,0.0001991,2]
[340453852,1729270233571,-500.0,0.0001991,2]
[340453853,1729270233580,-500.0,0.0001991,2]